{"text_format":"2","workbook":"xlsx","n_sheets":3,"sheets":["Főösszesítő","Munkanem össz.","Költségvetés"],"not_rendered":{"charts":0,"images":0,"macros":0,"external_links":0,"defined_names":2,"comments":0,"pivot_tables":0},"unopened":[],"bounds":{"document_bytes":16777216,"sheet_cells":100000,"run_cost":"one","rows_first":2000,"rows_last":500,"rows_between":2000,"halvings":0,"cell_chars":16384,"cell_head_chars":4096},"cells_cut":0,"cells_raw":0,"read":"whole","date_system":"1900"}

{"sheet":"Főösszesítő","index":0,"n_rows":30,"n_cols":4,"rows_kept":30,"cut":false,"hidden":false,"merged":[[0,1,0,2],[23,2,23,3],[16,0,16,3],[21,2,21,3],[22,2,22,3],[2,0,2,1],[3,0,3,1],[6,0,6,1],[11,0,11,1],[7,0,7,1]]}
[]
["Építtető:",null,"                                       "]
["Békés Város Önkormányzata",null,"                                       "]
["5630 Békés, Petőfi Sándor utca 2. sz.",null,"                                       "]
["                                       ",null,"                                       "]
["A létesítmény megnevezése:             ",null,"                                       "]
["TOP-1.2.1-15 Társadalmi és környezeti ",null,"                                       "]
["szempontból fenntartható turizmusfejlesztés"]
[]
[]
["A létesítmény helye:                                                          "]
["Békés, Dánfok építőmesteri munkák",null,"                                       "]
["                                                                              "]
[]
["                                                                              "]
[]
["Költségvetés főösszesítő"]
[]
[]
["Megnevezés",null,"Anyagköltség","Díjköltség"]
["1. Építmény közvetlen költségei",null,{"$f":"'Munkanem össz.'!B4","v":0},{"$f":"'Munkanem össz.'!C4","v":0}]
["2.1 ÁFA vetítési alap",null,{"$f":"SUM(C21:D21)","v":0}]
["2.2 ÁFA",0.27,{"$f":"C22*0.27","v":0}]
["3.  A munka ára",null,{"$f":"SUM(C22:D23)","v":0}]
[]
[]
[]
[]
[]
[null,null,"Aláírás"]

{"sheet":"Munkanem össz.","index":1,"n_rows":4,"n_cols":4,"rows_kept":4,"cut":false,"hidden":false,"merged":[]}
["Munkanem megnevezése","Anyag összege","Díj összege","Anyag+Díj ö."]
["Hullámszörf tér",{"$f":"Költségvetés!H98","v":0},{"$f":"Költségvetés!I98","v":0},{"$f":"B2+C2","v":0}]
[]
["Nettó összesen:",{"$f":"SUM(B2:B2)","v":0},{"$f":"SUM(C2:C2)","v":0},{"$f":"SUM(D2:D2)","v":0}]

{"sheet":"Költségvetés","index":2,"n_rows":98,"n_cols":9,"rows_kept":98,"cut":false,"hidden":false,"merged":[]}
["Ssz.","Tételszám","Tétel szövege","Menny.","Egység","Anyag egységár","Díj egységre","Anyag összesen","Díj összesen"]
[null,null,"Hullámszörf medence"]
[]
["1.","15-002-001.2.1","Függőleges és ferde szerkezetek zsaluzása\nKétoldali falzsaluzás függőleges vagy ferde sík felülettel,\nszerelt táblás zsaluzattal, kézzel mozgatva.",632,"m2",null,null,{"$f":"ROUND(D4*F4, 0)","v":0},{"$f":"ROUND(D4*G4, 0)","v":0}]
[]
["2.","15-002-001.1.1","Függőleges és ferde szerkezetek zsaluzása\nKétoldali falzsaluzás függőleges vagy ferde sík felülettel,fa zsaluzattal,\n3 m magasságig",22.2,"m2",null,null,{"$f":"ROUND(D6*F6, 0)","v":0},{"$f":"ROUND(D6*G6, 0)","v":0}]
[]
["3.","15-004-001.1.2.2","Téráthidaló szerkezetek zsaluzása\nSíklemez zsaluzása,alátámasztó állvánnyal,       födémzsaluzattal, zsaluhéj táblákkal borítva.",68.3,"m2",null,null,{"$f":"ROUND(D8*F8, 0)","v":0},{"$f":"ROUND(D8*G8, 0)","v":0}]
[]
["4.","15-004-051.2","Egyeneskarú lépcső zsaluzása,alátámasztó állvánnyal,4,00 m magasságig,\nacél támaszokkal, zsalutáblákkal kivitelezve,a fokok és lépcsőoldalak bezsaluzásával\n",3.38,"m2",null,null,{"$f":"ROUND(D10*F10,0)","v":0},{"$f":"ROUND(D10*G10,0)","v":0}]
[]
["5."," 21-002-001.1","Humuszos termőréteg, termőföld leszedése,terítése gépi erővel, 18%-os terephajlásig,bármilyen talajban, szállítással,\n50,0 m-ig",54.8,"m3",null,null,{"$f":"ROUND(D12*F12,0)","v":0},{"$f":"ROUND(D12*G12,0)","v":0}]
[]
["6.","21-003-007.1.5.1","Munkagödör földkiemelése épületek és műtárgyakhelyén bármely konzisztenciájú, I-IV. oszt. talajban,\ngépi erővel, kiegészítő kézi munkával,\nalapterület: 150,1-250,0 m2 között,\n5,5 m mélységig",510.23,"m3",null,null,{"$f":"ROUND(D14*F14, 0)","v":0},{"$f":"ROUND(D14*G14, 0)","v":0}]
[]
["7.","21-003-6.1.1","Alapárok földkiemelése gépi erővel, kiegészítő kézi munkával, bármely konzisztenciájú, I-IV. oszt. talajban, dúcolás nélkül, 3,0 m2 szelvényig",54.8,"m3",null,null," -",{"$f":"ROUND(D16*G16,0)","v":0}]
[]
[null,"21-003-011.1.1","Földvisszatöltés munkagödörbe vagy munkaárokba,tömörítés nélkül, réteges elterítéssel,I-IV. osztályú talajban,\nkézi erővel, az anyag súlypontja karoláson belül,\na vezeték (műtárgy) felett és mellett 50 cm vastagságig\n",11.3,"m3",null,null," -",{"$f":"ROUND(D18*G18,0)","v":0}]
[]
["8.","21-011-7.2-0120123","Feltöltések alap- és lábazati falak közé és alagsori vagy alá nem pincézett földszinti padozatok alá, az anyag szétterítésével, tömörítésével, mozgatásával,  osztályozatlan kavicsból Nyers homokos bányakavics NHK 0/125 Q-T.",125,"m3     ",null,null,{"$f":"ROUND(D20*F20, 0)","v":0},{"$f":"ROUND(D20*G20, 0)","v":0}]
[]
["9.","21-008-002.1.9","Altalaj tömörítése gépi erővel,\nnagy felületen,tömörségi fok: 90%",37.4,"m3",null,null,{"$f":"ROUND(D22*F22, 0)","v":0},{"$f":"ROUND(D22*G22, 0)","v":0}]
[]
["10.","21-011-001.2.1","Fejtett föld felrakása szállítóeszközre, géppel.",566.1,"m3     ",null,null,{"$f":"ROUND(D24*F24, 0)","v":0},{"$f":"ROUND(D24*G24, 0)","v":0}]
[{"$nulls":7},{"$f":"ROUND(D25*F25, 0)","v":0},{"$f":"ROUND(D25*G25, 0)","v":0}]
["11.","21-011-1.2.1","Fejtett föld elszállítása az önkormányzat által kijelölt lerakóhelyre.",566.1,"m3",null,null,{"$f":"ROUND(D26*F26,0)","v":0},{"$f":"ROUND(D26*G26, 0)","v":0}]
[]
["12.","23-003-002-0242210","Betonalap készítése  C25/30 minőségű kavicsbetonból.",38.700000000000003,"m3     ",null,null,{"$f":"ROUND(D28*F28, 0)","v":0},{"$f":"ROUND(D28*G28, 0)","v":0}]
[]
["13.","31-001-001.2.1-0220955","Betonacél helyszíni szerelése függőleges vagy vízszintes tartószerkezetbe,\nbordás betonacélból.\n",25.6,"t",null,null,{"$f":"ROUND(D30*F30, 0)","v":0},{"$f":"ROUND(D30*G30, 0)","v":0}]
[]
["14.","31-021-004.3.2-0250410","Sík vagy alulbordás vasbeton lemez készítése, C30/37 min.betonból,\nbetonszivattyús technológiával, vibrátoros tömörítéssel. - fenéklemez -.\n",45.3,"m3",null,null,{"$f":"ROUND(D32*F32, 0)","v":0},{"$f":"ROUND(D32*G32, 0)","v":0}]
[]
["15.","31-021-004.3.2-0250410","Sík vagy alulbordás vasbeton lemez készítése, C30/37 min. vízzáró betonból,\nbetonszivattyús technológiával, vibrátoros tömörítéssel. - 20 cm vtg. Lemezek  -.\n",13.7,"m3",null,null,{"$f":"ROUND(D34*F34, 0)","v":0},{"$f":"ROUND(D34*G34, 0)","v":0}]
[]
["16.","31-011-003.3.3-0250410","Vasbetonfal készítése, C30/37 min.betonból,\nszivattyús technológiával, vibrátoros tömörítéssel.",94,"m3",null,null,{"$f":"ROUND(D36*F36, 0)","v":0},{"$f":"ROUND(D36*G36, 0)","v":0}]
[]
["17.","31-021-010.11.1.3-0250410","Vasbeton lépcső készítése C30/37 min.betonból,betonszivattyús technológiával,      vibrátoros tömörítéssel.\n",3.7,"m3",null,null,{"$f":"ROUND(D38*F38, 0)","v":0},{"$f":"ROUND(D38*G38, 0)","v":0}]
[]
["18.","31-030-011.2.1.2-0121110","Beton aljzat készítése C 16/20 min.betonból betonszivattyú továbbítással és kézi bedolgozással,merev aljzatra, tartószerkezetre a felület vassimítóval eldolgozva, cementszórással, 12 cm vtg., a széleken vasalva.\n",22.44,"m3",null,null,{"$f":"ROUND(D40*F40, 0)","v":0},{"$f":"ROUND(D40*G40, 0)","v":0}]
[]
["19.","33-011-001.1.1.4.1.1.3-2110002","Válaszfal építése,égetett agyag  -kerámia termékekből,normál elemekből,\n120 mm falvastagságban,\n250x120x65 mm-es méretű\nkisméretű tömör téglából,\nerősítő pillérrel, tömören falazva,falazó, cementes mészhabarcsba falazva.",178,"m2",null,null,{"$f":"ROUND(D42*F42, 0)","v":0},{"$f":"ROUND(D42*G42, 0)","v":0}]
[]
["20.","36-014-002.1-0520110","Beszorító habarcsréteg függőleges falszigeteléshez, falazó,cementes mészhabarcs vagy falazó, meszes cementhabarcs kiöntéssel,\n1 cm vastagságban\nM 2,5 (Hf30-cm) falazó, meszes cementhabarcs",178,"m2",null,null,{"$f":"ROUND(D44*F44, 0)","v":0},{"$f":"ROUND(D44*G44, 0)","v":0}]
[]
["21.","31-030-012.1.1-0600050","Simító réteg aljzatbetonon 1 cm vastagságban, meglévő aljzatra,  vassimítóval felhordva.\n",187,"m2",null,null,{"$f":"ROUND(D46*F46, 0)","v":0},{"$f":"ROUND(D46*G46, 0)","v":0}]
[]
["22.","42-051-001.1.2.3.4.1-0212402","Műgyanta burkolat készítése az 1. rétegrend szerint.",242.5,"m2     ",null,null,{"$f":"ROUND(D48*F48, 0)","v":0},{"$f":"ROUND(D48*G48, 0)","v":0}]
[]
["23.","\"K\"","Horganyzott acél rácskapu elhelyezése."]
[null,null,"1,5 x 1,00 m méretű",1,"db",null,null,{"$f":"ROUND(D51*F51, 0)","v":0},{"$f":"ROUND(D51*G51, 0)","v":0}]
[]
["24.","\"K\"","Korlát  készítése és elhelyezése biztonságiüveg betéttel, fémfogódzóval.",75,"m",null,null,{"$f":"ROUND(D53*F53, 0)","v":0},{"$f":"ROUND(D53*G53, 0)","v":0}]
[]
["25.","48-007-021.11.1-0113277","Hőszigetelés medencefalon,foltonként ragasztva vagy megtámasztva egy rétegben,\nextrudált polisztirolhab lemezzel\nAUSTROTHERM XPS TOP P extrudált polisztirolhab hőszigetelő lemez, lépcsős élkiképzéssel, 615x1265x30 mm",178,"m2",null,null,{"$f":"ROUND(D55*F55, 0)","v":0},{"$f":"ROUND(D55*G55, 0)","v":0}]
[]
["26.","48-007-056.1.3.1-0113544","Alátét- és elválasztó rétegek beépítése,\nvédőlemez-, műanyagfátyol-, fólia vagy műanyagfilc egy rétegben, átlapolással, rögzítés nélkül,függőleges felületen,\nAUSTROTHERM polietilén fólia, 0,09 mm vastagságú, 2 m szélességű\n",178,"m2",null,null,{"$f":"ROUND(D57*F57, 0)","v":0},{"$f":"ROUND(D57*G57, 0)","v":0}]
[]
["27.","48-002-001.1.1.1.1-0099073","Bitumenes lemez szigetelés aljzatának kellősítése,egy rétegben,vízszintes felületen,vízbázisú bitumenemulzióval (enyhén nedves felületen)\nISO-PRIMER oldószermentes bitumenes alapozó, beton felületen (anyagfelhasználás: 0,5-0,7 kg/m2)\n",151,"m2",null,null,{"$f":"ROUND(D59*F59, 0)","v":0},{"$f":"ROUND(D59*G59, 0)","v":0}]
[]
["28.","48-002-001.1.1.2.1-0099073","Bitumenes lemez szigetelés aljzatának kellősítése,egy rétegben,függőleges felületen,vízbázisú bitumenemulzióval (enyhén nedves felületen)\nISO-PRIMER oldószermentes bitumenes alapozó, beton felületen (anyagfelhasználás: 0,5-0,7 kg/m2)\n",178,"m2",null,null,{"$f":"ROUND(D61*F61, 0)","v":0},{"$f":"ROUND(D61*G61, 0)","v":0}]
[]
["29.","48-004-001.45.2-0115009","Műanyag dombornyomott szigetelésvédő lemez, rögzítéssel, vízszintes felületen.",151,"m2",null,null,{"$f":"ROUND(D63*F63, 0)","v":0},{"$f":"ROUND(D63*G63, 0)","v":0}]
[]
["30.","48-002-001.2.1.1.3-0415024","Talajnedvesség elleni szigetelés;\nvízszintes felületen,egy rétegben,\nplasztomerbitumenes (APP vagy APP/SBS modifikált duo) lemezzel, aljzathoz foltonként vagy sávokban olvasztásos ragasztással, átlapolásoknál teljes felületű hegesztéssel fektetve ISO-LINE FIX 4,5 PLAST üvegszövet hordozórétegű, 4 mm névleges vastagságú plasztomerbitumenes (APP) modifikált) lemez.\n",151,"m2",null,null,{"$f":"ROUND(D65*F65, 0)","v":0},{"$f":"ROUND(D65*G65, 0)","v":0}]
[]
["31.","48-002-001.2.2.1.3-0415024","Talajnedvesség elleni szigetelés;\nfüggőleges felületen,egy rétegben,\nplasztomerbitumenes (APP vagy APP/SBS modifikált duo) lemezzel, aljzathoz teljes felületű lángolvasztásos ragasztással, átlapolásoknál teljes felületű hegesztéssel fektetve ISO-LINE FIX 4,5 PLAST üvegszövet hordozórétegű, 4 mm névleges vastagságú plasztomerbitumenes (APP) modifikált) lemez\n",178,"m2",null,null,{"$f":"ROUND(D67*F67, 0)","v":0},{"$f":"ROUND(D67*G67, 0)","v":0}]
[]
["32.","48-002-001.2.1.1.3-0415101","Talajnedvesség elleni szigetelés;\nvízszintes felületen,egy rétegben,\nplasztomerbitumenes (APP vagy APP/SBS modifikált duo) lemezzel, aljzathoz foltonként vagy sávokban olvasztásos ragasztással, átlapolásoknál teljes felületű hegesztéssel fektetve ISO-LINE NEGRO C 4,5 PLAST poliészterfátyol hordozórétegű, 4 mm névleges vastagságú plasztomerbitumenes (APP modifikált) lemez\n",151,"m2",null,null,{"$f":"ROUND(D69*F69, 0)","v":0},{"$f":"ROUND(D69*G69, 0)","v":0}]
[]
["33.","\"K\"","Medencefóliázás készítése csúszásmentes  kivitelben.",304,"m2",null,null,{"$f":"ROUND(D71*F71, 0)","v":0},{"$f":"ROUND(D71*G71, 0)","v":0}]
[{"$nulls":7},{"$f":"ROUND(D72*F72, 0)","v":0},{"$f":"ROUND(D72*G72, 0)","v":0}]
["34.","48-002-001.2.2.1.3-0415101","Talajnedvesség elleni szigetelések\nTalajnedvesség elleni szigetelés;\nfüggőleges felületen,egy rétegben, \nplasztomerbitumenes (APP vagy APP/SBS modifikált duo) lemezzel, aljzathoz teljes felületű lángolvasztásos ragasztással, átlapolásoknál teljes felületű hegesztéssel fektetve ISO-LINE NEGRO C 4,5 PLAST poliészterfátyol hordozórétegű, 4 mm névleges vastagságú plasztomerbitumenes (APP modifikált) lemez\n",178,"m2",null,null,{"$f":"ROUND(D73*F73, 0)","v":0},{"$f":"ROUND(D73*G73, 0)","v":0}]
[]
["35.","M/62-003-008.1-0618313","Térburkolat készítése 6 cm vtg. Frühwald classic szürke térkőből kiékelve, szegéllyel,  alatta 4 cm tömörített ágyazókavics,12 cm vtg. CKT,15 cm tömörített kőzuzakék feltöltés,     1 rtg. geotextilia, előtömörített talaj.",93.1,"m2",null,null,{"$f":"ROUND(D75*F75,0)","v":0},{"$f":"ROUND(D75*G75,0)","v":0}]
[]
["36.","M/ 68-004-008.3-0612122","Paliszádsor elhelyezése földmunkával.          H=90 ; Ø 20cm      ",135,"db",null,null,{"$f":"ROUND(D77*F77,0)","v":0},{"$f":"ROUND(D77*G77,0)","v":0}]
[]
["37.","M/ 68-004-008.3-0612122","Paliszádsor elhelyezése földmunkával.          H=60 ; Ø 20cm      ",65,"db",null,null,{"$f":"ROUND(D79*F79,0)","v":0},{"$f":"ROUND(D79*G79,0)","v":0}]
[]
["38.","21-011-7.2-0120123","Feltöltések alap- és lábazati falak közé és alagsori vagy alá nem pincézett földszinti padozatok alá, az anyag szétterítésével, tömörítésével, mozgatásával,  osztályozatlan kavicsból Nyers homokos bányakavics NHK 0/125 Q-T.- paliszádsor közé -",8.1999999999999993,"m3     ",null,null,{"$f":"ROUND(D81*F81, 0)","v":0},{"$f":"ROUND(D81*G81, 0)","v":0}]
[]
["39.","62-003-008.1-0618313","Térburkolat készítése beton kiselemes burkolókövekkel, homokágyazatba fektetve, paliszádsor közt.",18,"m2",null,null,{"$f":"ROUND(D83*F83,0)","v":0},{"$f":"ROUND(D83*G83,0)","v":0}]
[]
["40.","\"K\"","Hullámszörf medence vízgépészeti technológia kompletten, gyártó által beépíthető legmagasabb biztonsági szinttel, készre szerelve, próbaüzemmel, átadással, szükséges engedélyek beszerzésével, Atlantic Surf 2 x 75 model, 150 kW/h",1,"klt.",null,null,{"$f":"ROUND(D85*F85,0)","v":0},{"$f":"ROUND(D85*G85,0)","v":0}]
[]
[null,null,"Lábmosók építése"]
[]
["41.","15-002-001.1.1","Függőleges és ferde szerkezetek zsaluzása\nKétoldali falzsaluzás függőleges vagy ferde sík felülettel,fa zsaluzattal,\n3 m magasságig",4.26,"m2",null,null,{"$f":"ROUND(D89*F89, 0)","v":0},{"$f":"ROUND(D89*G89, 0)","v":0}]
[]
["42."," 21-002-001.1","Humuszos termőréteg, termőföld leszedése,terítése gépi erővel, 18%-os terephajlásig,bármilyen talajban, szállítással,\n50,0 m-ig",1.08,"m3",null,null,{"$f":"ROUND(D91*F91, 0)","v":0},{"$f":"ROUND(D91*G91, 0)","v":0}]
[]
["43.","21-011-7.2-0120123","Feltöltések alap- és lábazati falak közé és alagsori vagy alá nem pincézett földszinti padozatok alá, az anyag szétterítésével, tömörítésével, mozgatásával,  osztályozatlan kavicsból Nyers homokos bányakavics NHK 0/125 Q-T.- paliszádsor közé -",0.54,"m3",null,null,{"$f":"ROUND(D93*F93, 0)","v":0},{"$f":"ROUND(D93*G93, 0)","v":0}]
[]
["44.","31-021-004.3.2-0250410","Lábmosók készítése sík vagy alulbordás vasbeton lemez készítése, C30/37 min. vízzáró betonból,betonszivattyús technológiával, vibrátoros tömörítéssel. \n",0.79,"m3",null,null,{"$f":"ROUND(D95*F95, 0)","v":0},{"$f":"ROUND(D95*G95, 0)","v":0}]
[]
["45.","M/48-002-001.45.1-0115101","1 rtg. DÖRKEN DELTA DRAIN  dombornyomott lemez vízszintesen.",4.2,"m2",null,null,{"$f":"ROUND(D97*F97, 0)","v":0},{"$f":"ROUND(D97*G97, 0)","v":0}]
[null,null,"Hullámszörf medence összesen:",{"$nulls":4},{"$f":"SUM(H4:H97)","v":0},{"$f":"SUM(I4:I97)","v":0}]